Cogmind - Beta 14 @@@ ROGUE MODE // 2025.04.25 @ 04:54:52 Player: r@sin Result: Destroyed by G-47 Trooper with Particle Gun Performance ------------- Evolutions (0) 0 Regions Visited (1) 200 Robots Destroyed (0) 0 Value Destroyed (10) 10 Prototype IDs (0) 0 Alien Tech Used (0) 0 Bonus (0) 0 TOTAL SCORE: 210 Bonus ------- None Cogmind --------- Core Integrity 0/250 Matter 186/300 Energy 100/100 System Corruption 1% Temperature Cool (9) Movement Core (200) Ox3 Location -10/Materials Parts ------- > --- POWER (1) -------- (None) > --- PROPULSION (2) --- (None) > --- UTILITY (2) ------ Medium Storage Unit > --- WEAPON (2) ------- (None) > --- INVENTORY (10) --- Light Ion Engine Cooling System Large Storage Unit Large Storage Unit Tractor Beam Particle Gun Particle Gun Particle Gun Light Assault Rifle Grenade Launcher Peak State ------------ > --- POWER ------------ Light Ion Engine > --- PROPULSION ------- Light Treads Light Treads > --- UTILITY ---------- Small Storage Unit Propulsion Shielding > --- WEAPON ----------- Particle Gun Particle Gun > --- INVENTORY -------- Ion Engine Wheel Cooling System EM Pulse Gun EM Pulse Gun Particle Gun Light Assault Rifle Grenade Launcher [Rating: 10] Favorites ----------- Power Light Ion Engine Engine Light Ion Engine Propulsion Light Treads Treads Light Treads Utility Small Storage Unit Storage Small Storage Unit Protection Propulsion Shielding Weapon Particle Gun Energy Gun Particle Gun Ballistic Gun Light Assault Rifle Build | -11 -10 ------- Run | Yrd Mat Slots Evolved . | . . Power . | . . Propulsion . | . . Utility . | . . Weapon . | . . Parts Attached 13 | 6 7 Power 2 | 1 1 Engine 2 | 1 1 Core . | . . Reactor . | . . Propulsion 2 | 2 . Treads 2 | 2 . Leg . | . . Wheel . | . . Hover . | . . Flight . | . . Utility 3 | 1 2 Device . | . . Storage 2 | 1 1 Processor . | . . Hackware . | . . Protection 1 | . 1 Artifact . | . . Weapon 6 | 2 4 Energy Gun 5 | 1 4 Energy Cannon . | . . Ballistic Gun 1 | 1 . Ballistic Cannon . | . . Launcher . | . . Special Weapon . | . . Impact Weapon . | . . Slashing Weapon . | . . Piercing Weapon . | . . Special Melee Weapon . | . . Unidentified Prototypes . | . . Parts Lost 6 | . 6 Power 1 | . 1 Propulsion 2 | . 2 Utility 1 | . 1 Weapon 2 | . 2 Highest Loss Streak 6 | . 6 To Critical Strikes . | . . Average Slot Usage (%) 87 | . 87 Engine 13 | . 13 Treads 26 | . 26 Storage 14 | . 14 Protection 5 | . 5 Energy Gun 22 | . 22 Ballistic Gun 3 | . 3 Peak Build Rating 10 | 6 10 Average Rating 7 | 4 7 On Entrance 3 | . 6 Naked Turns . | . . Heaviest Build 20 | 11 20 Greatest Support 40 | 40 40 Greatest Overweight (x) . | . . Average Overweight (x) . | . . Largest Inventory Capacity 10 | 8 10 Average Capacity 8 | 7 8 Most Carried 10 | 3 10 Average Carried 6 | 2 7 Final Capacity 10 | 8 10 Final Carried 10 | 3 10 Class Distribution -------------------- 100% | Mutant Dominant Class ---------------- Mutant | -10/Materials Resources | -11 -10 ----------- Run | Yrd Mat Matter Collected 144 | 144 . Remotely . | . . Salvage Created . | . . Parts . | . . Haulers Intercepted . | . . Recyclers Shooed . | . . Parts Field Recycled . | . . Retrieved Matter . | . . Parts Self-Destructed . | . . Prevented . | . . Kills | -11 -10 ------- Run | Yrd Mat Combat Hostiles Destroyed . | . . Classes Destroyed . | . . Best Kill Streak . | . . Combat Bots Only . | . . Max Kills in Single Turn . | . . Gunslinging . | . . Exploded . | . . Melee . | . . Uniques/NPCs Destroyed . | . . Combat | -11 -10 -------- Run | Yrd Mat Hostile Shots Fired 63 | . 63 Missed 8 | . 8 Damage Taken 756 | . 756 Core 258 | . 258 Absorbed by Shields . | . . Redirected to Shielding 53 | . 53 Core Remaining (%) 100 | 100 . Volleys Fired 11 | . 11 Largest 2 | . 2 Hottest 130 | . 130 Shots Fired 22 | . 22 Gun 22 | . 22 Cannon . | . . Launcher . | . . Special . | . . Kinetic . | . . Thermal 14 | . 14 Explosive . | . . Electromagnetic 8 | . 8 Robot Hit Streak . | . . Robot Miss Streak . | . . Penetration Max . | . . Secondary Targets . | . . Shots Hit Robots . | . . Core Hits . | . . Critical Kills . | . . Critical Parts Destroyed . | . . Critical Strikes . | . . Melee Attacks . | . . Impact . | . . Slashing . | . . Piercing . | . . Sneak Attacks . | . . Combat Hostiles . | . . Follow-up Attacks . | . . Damage Inflicted 26 | . 26 Guns 15 | . 15 Cannons . | . . Explosions . | . . Melee . | . . Ramming 11 | . 11 Kinetic . | . . Thermal . | . . Explosive . | . . Electromagnetic 15 | . 15 Impact . | . . Slashing . | . . Piercing . | . . Highest Corruption 1 | . 1 Average Corruption 1 | . 1 Corruption Purged . | . . Corruption Blocked . | . . Overload Shots . | . . Overflow Damage . | . . Projectiles . | . . Explosions . | . . Melee . | . . Knockbacks . | . . Impact . | . . Kinetic . | . . Secondary . | . . Self-Inflicted Damage 3 | . 3 Shots . | . . Rammed 13 | . 13 Targets Rammed 13 | . 13 Kicked . | . . Crushed . | . . Highest Temperature 623 | . 623 Average Temperature 318 | . 318 Received Heat Transfer 432 | . 432 Effects 15 | . 15 Shutdowns 2 | . 2 Energy Bleed 2 | . 2 Interference 4 | . 4 Short Circuit 2 | . 2 Damage (minor) 3 | . 3 Damage (major) 1 | . 1 Damage (core) 1 | . 1 Siege Activations . | . . Robots Corrupted . | . . Combat Hostiles . | . . Parts Fried . | . . Impact Corruptions . | . . Robots Melted . | . . Combat Hostiles . | . . Parts Melted . | . . Heat Transferred . | . . Parts Sabotaged . | . . Parts Stolen . | . . Parts Stripped . | . . Power Chain Reactions . | . . Alert | -11 -10 ------- Run | Yrd Mat Peak Influence 15 | . 15 Initial . | . . Average 1 | . 1 Maximum Alert Level . | . . Low Security (%) 100 | 100 100 Level 1 . | . . Level 2 . | . . Level 3 . | . . Level 4 . | . . Level 5 . | . . High Security . | . . Max Security . | . . Squads Dispatched . | . . Investigation . | . . Extermination . | . . Reinforcement . | . . Assault . | . . Garrison . | . . Intercept . | . . Searches Triggered . | . . Construction Impeded . | . . Haulers Reinforced . | . . Active Scanning Responses . | . . Cargo Convoy Interrupts . | . . Stealth | -11 -10 --------- Run | Yrd Mat Distress Signals . | . . Communications Jammed . | . . Distress Signals . | . . Times Spotted 2 | . 2 Peak Tracking Total 2 | . 2 Tactical Retreats . | . . Traps | -11 -10 ------- Run | Yrd Mat Traps Triggered . | . . Indirectly . | . . Trap Hack Attempts . | . . Triggered . | . . Disarmed . | . . Reprogrammed . | . . Reused . | . . Traps Extracted . | . . Installed . | . . Triggered . | . . Machines | -11 -10 ---------- Run | Yrd Mat Machines Disabled 1 | . 1 Max in Single Turn 1 | . 1 Machines Repaired . | . . Machines Dismantled . | . . Machines Sabotaged . | . . Overloaded Fab Kills . | . . Hacking | -11 -10 --------- Run | Yrd Mat Machines Accessed 2 | . 2 Terminals 1 | . 1 Fabricators . | . . Repair Stations . | . . Recycling Units 1 | . 1 Scanalyzers . | . . Garrison Access . | . . Total Hacks 5 | . 5 Successful 3 | . 3 Failed 2 | . 2 Catastrophic 1 | . 1 Database Lockouts . | . . Manual 1 | . 1 Terminals 3 | . 3 Fabricators . | . . Repair Stations . | . . Recycling Units 2 | . 2 Scanalyzers . | . . Garrison Access . | . . Terminal Hacks 1 | . 1 Zone Layout 1 | . 1 Fabricator Hacks . | . . Repair Station Hacks . | . . Recycling Unit Hacks 2 | . 2 Process 1 | . 1 Retrieve Components 1 | . 1 Scanalyzer . | . . Garrison Access Hacks . | . . Unauthorized Hacks . | . . Terminals . | . . Fabricators . | . . Repair Stations . | . . Recycling Units . | . . Scanalyzers . | . . Garrison Access . | . . Data Cores Recovered . | . . Used . | . . Hacking Detections 2 | . 2 Full Trace Events . | . . Feedback Events . | . . Feedback Blocked . | . . Robot Schematics Acquired . | . . Robots Built . | . . Authchips . | . . Time . | . . Total Robot Build Rating . | . . Part Schematics Acquired . | . . Parts Built . | . . Authchips . | . . Time . | . . Total Part Build Rating . | . . Parts Repaired . | . . Time . | . . Parts Recycled . | . . Recycled Matter 94 | . 94 Retrieved Matter . | . . Retrieved Components . | . . Parts Scanalyzed . | . . Part Schematics Acquired . | . . Parts Damaged . | . . Bothacking | -11 -10 ------------ Run | Yrd Mat Used RIF Installer . | . . Robots Hacked . | . . Non-combat . | . . Combat . | . . Robot Hacks Applied . | . . Relay Couplers Released . | . . Fabnet Peak Effective % . | . . Robots Rewired . | . . Allies Hacked . | . . Hacks Repelled . | . . Allies | -11 -10 -------- Run | Yrd Mat Total Allies . | . . Largest Group . | . . Highest-Rated Group . | . . Highest-Rated Ally . | . . Total Orders . | . . Ally Attacks . | . . Total Damage . | . . Kills . | . . Allies Corrupted . | . . Allies Melted . | . . Intel | -11 -10 ------- Run | Yrd Mat Robot Analysis Total . | . . Derelict Logs Recovered . | . . Drone Launches . | . . Drone Recoveries . | . . Exploration | -11 -10 ------------- Run | Yrd Mat Turns Passed 474 | 73 401 Spaces Moved 232 | 41 191 Core 3 | 3 . Treads 229 | 38 191 Legs . | . . Wheels . | . . Hover . | . . Flight . | . . Fastest Speed 50 | 50 160 Average Speed 158 | 151 160 Slowest Speed 160 | 160 160 Overloaded Moves . | . . Propulsion Burnouts . | . . Robots Hopped . | . . Cave-ins Triggered . | . . Exploration Rate (%) 21 | 4 38 Regions Visited 1 Branch Regions . Pre-discovered Areas . | . . Known Exits Taken . | . . Unknown Exits Taken 1 | 1 . Scrap Searched . | . . Spaces Dug . | . . Terrain Destroyed . | . . Melee . | . . Projectile . | . . AOE . | . . Terrain Rammed . | . . Walls Destroyed . | . . Machines Disabled . | . . Actions | -11 -10 --------- Run | Yrd Mat Total 297 | 49 248 Wait 12 | . 12 Move 231 | 40 191 Hop . | . . Pick Up 11 | 3 8 Fast Attach 9 | 6 3 Attach . | . . Detach 2 | . 2 Swap 4 | . 4 Drop 4 | . 4 Fire 11 | . 11 Melee . | . . Ram 12 | . 12 Kick . | . . Crush 1 | . 1 Escape Stasis . | . . Rewire . | . . Trap . | . . Miscellaneous . | . . Route ------- -11/Scrapyard -10/Materials (discovered 1 exit: [*Mat]) History --------- Turn | Location | Event 15 | -11/Scrapyard | Discovered new exit (range 16) 74 | -11/Scrapyard | Entered Materials 207 | -10/Materials | Discovered new exit (range 3) 310 | -10/Materials | Build established: Mutant 423 | -10/Materials | Core integrity fell below 50% 470 | -10/Materials | Core integrity fell below 20% 475 | -10/Materials | Destroyed by G-47 Trooper with Particle Gun Last Messages --------------- (-27). 00432_ Power failure, Ion Engine shutdown. 00439_ Propulsion Shielding destroyed. 00446_ Slammed into G-47 Trooper. 00447_ Lgt. Treads destroyed. 00448_ Slammed into G-47 Trooper. 00449_ EM Pulse Gun destroyed. 00451_ Slammed into G-47 Trooper. 00452_ EM Pulse Gun destroyed. 00454_ Slammed into G-47 Trooper. 00455_ G-47 Trooper misfires. 00457_ Slammed into G-47 Trooper. 00457_ Hadron Collector disabled. 00459_ Slammed into G-47 Trooper. 00461_ Broken Lgt. Treads destroyed. 00462_ Slammed into G-47 Trooper. 00465_ Ion Engine destroyed. 00467_ Slammed into G-47 Trooper. 00469_ Destabilizing: System corrupted (+1). 00471_ Slammed into G-47 Trooper. Map ----- +----------------------------------------------------+ | ??????????????????? # #??? | | ???????????????????? ########## ########### | | ???????????????????????????????# # # | | ?????????????????????????####### # # | | ????????????????????????? # # # | | ????????????????????????? # # # | | ????????????????????????? # + # | | ?????????????????????????"""" # # # | | ?????????????????????????"""" # # # | | ?????????????????????????"""" # # # | | ????????????????????????? # ########### | | ???????????????????????????????# #?????????? | | ???????????????????????????????# #?????????? | | ???????????????????????????????# #?????????? | | ???????????????????????????????# #?????????? | | ???????????????????????????????### #?????????? | | ?????????????????????????????????# #?????????? | | ??????????????????????????????#### ##????????? | | ????????????????????????####### #????????? | | ???????????????????? #######??? | | ??????????????????? #??? | | ???????????????????? ##### #??? | | ???????????????????####+####### #???# #??? | | ???????????????????# #???#######???# #??? | | ???????######??????# """" #?????????????# #??? | | ??????##! ##?????# """"@#????#####????# #??? | | ??????#! !#?????# """g #???? #????# #??? | | ??????# #?????# #???"""" #????# #??? | | ######### ##?????# g #??""""" #????# #??? | | # #########+#####??""""" #??### ###? | | """ # # ^ ## """"" #??# #? | | "Y" # # "" """ ## """"" #### #? | | + + "" """ ## """"" + #? | | # # ! """ """ ## """"" #### #? | | """ # # ## #??# #? | | """ # #####################+##### ## | | """ # ## # | | # < ## [ !# | | ######### ## [[[!!# | | ?????#######+######+######+################### | | ?????# # #? ????????????????? | | ?????# # [ # """ ??????????????? | | ?????# # # """ #?????????????? | | ?????# !! """ # # """ #?????????????? | | ?????# ! """ # # #?????????????? | | ?????# """ # [# """ #?????????????? | | ?????# ########= """ #?????????????? | | ?????# #??????# ?????#?????????????? | | ?????###########??????# ???????????????????? | | ??????????????????????###????????????????????? | +----------------------------------------------------+ Best States ------------- Heat Dissipation 25 Energy Generation 10 Energy Capacity 250 Matter Stores 184 Matter Capacity 300 Sight Range 16 Terrain Scan Density 10 Propulsion Shielding 33 Evasion (%) 40 Recoil Reduction 2 Item Schematics ----------------- None Robot Schematics ------------------ None Fabricated ------------ Nothing Alien Tech Used ----------------- None Achievements -------------- None Challenges ------------ None Game ------ Seed MassScrapVibroblade Manual? 0 Play Time 00:06:58 Cumulative 19.7 hours Start 2025.04.25 @ 04:51:06 End 2025.04.25 @ 04:54:52 Sessions 1 Manual Loads 0 Difficulty Rogue Special Mode None Game No. 23 Rogue 16 Adventurer 7 Explorer 0 Win Type - Total 2 Types 1/0/1/0/0/0/0/0/0 Lore% 8 Gallery% 26 Achievement% 25 Wizard Run 0 Options --------- Layout 1 ASCII 0 Keyboard 1 Movement Vi Keybinds 0 Fullscreen 1 Font 24/Smallcaps Map View 50x35 Zoom Use 0% Tactical HUD 1 Map Filters NONE Filters NONE Steam 1 RUN: eabeae57-81f9-47a4-a482-8d5239fc55fe